[Event "Austrian Championship 2022"]
[Site "Vienna"]
[Date "2022.08.14"]
[Round "3.15"]
[White "Kruckenhauser, Arthur"]
[Black "Leitner, Gerald"]
[Result "1/2-1/2"]
[ECO "B70"]
[WhiteElo "2303"]
[BlackElo "2145"]
[Annotator "TA"]
[PlyCount "119"]
[EventDate "2022.08.12"]
[EventType "swiss"]
[EventCountry "AUT"]
[SourceTitle "playchess.com"]
[Source "ChessBase"]
[SourceQuality "1"]
[TimeControl "40/5400+30:1800+30"]

{[%evp 15,119,-5,-2,-58,-19,-35,-28,-28,-11,-101,-64,-70,-8,-17,-15,-13,-13,-25,0,-173,-173,-172,-167,-183,-201,-150,-146,-145,-136,-131,-100,-427,-461,-445,-470,-706,-505,-564,-543,-644,-81,-58,-65,-71,-69,-406,0,0,10,19,18,0,0,0,17,20,31,0,0,0,0,0,0,0,0,0,0,0,0,0,0,0,0,0,0,0,0,0,0,0,0,0,0,0,0,0,0,-8,0,0,0,0,0,0,0,0,0,0,0,0,0,0,0,0,0,0]} 1. e4 {[%emt 0:00:13]} c5 {[%emt 0:00:01]} 2. Nf3 {[%emt 0:00:26]} d6 {[%emt 0:00:04]} 3. d4 {[%emt 0:00:32]} cxd4 {[%emt 0:00:01]} 4. Nxd4 {[%emt 0:00:06]} Nf6 {[%emt 0:00:00]} 5. Nc3 {[%emt 0:00:07]} a6 {[%emt 0:00:01]} 6. Qf3 {[%emt 0:00:42]} g6 {[%emt 0:00:01]} 7. h3 {[%emt 0:01:38]} Bg7 {[%emt 0:00:04]} 8. Be3 {[%emt 0:00:04]} O-O {[%emt 0:00:07]} 9. g4 {[%emt 0:00:41] B70: Sicilian Dragon: 6 g3 and 6 Be2 (without a later Be3).} ({White should play} 9. Rd1 $11) 9... Nc6 {[%emt 0:00:51]} 10. O-O-O {[%emt 0:00:13]} Bd7 $1 {[%emt 0:00:01]} 11. Qg2 {[%emt 0:03:14] Black has an edge.} b5 {[%emt 0:00:17][%cal Bb7b5,Bb5b4][%mdl 32] [#]} (11... Rc8 $5 {[%cal Rc6d4]}) 12. Be2 $146 {[%emt 0:06:48]} (12. f4 $11) ({Predecessor:} 12. f4 b4 13. Nd5 a5 14. Nxf6+ Bxf6 15. e5 Nxd4 16. Bxd4 dxe5 17. fxe5 Bg5+ 18. Kb1 {1-0 (47) Palczert,M (2321)-Falkevall,A (2275) Thessaloniki 2022}) 12... b4 {[%emt 0:06:10]} 13. Nd5 {[%emt 0:00:19]} Nxd5 {[%emt 0:00:42]} (13... Rc8 $15 14. Bxa6 Ra8 15. Nxc6 Bxc6) 14. exd5 $11 {[%emt 0:00:12]} Nxd4 {[%emt 0:00:01]} 15. Bxd4 {[%emt 0:00:08]} a5 {[%emt 0:07:21]} 16. Qe4 {[%emt 0:15:09]} Qc7 {[%emt 0:13:33] aiming for ...e5.} 17. Kb1 $2 {[%emt 0:03:55]} (17. Bxg7 $11 {and White has nothing to worry.} Kxg7 18. Qd4+ Kg8 19. Rhe1) 17... e5 $1 $19 {[%emt 0:08:14]} 18. Be3 {[%emt 0:16:49]} Rfc8 {[%emt 0:11:07]} 19. Rc1 {[%emt 0:06:36]} f5 {[%emt 0:01:53][%cal Bf7f5,Bf5f4][%mdl 32]} 20. Qd3 {[%emt 0:01:16]} e4 {[%emt 0:11:30]} 21. Qd1 {[%emt 0:03:28]} a4 $36 {[%emt 0:00:23][%mdl 2048] Hoping for ...a3. Black has strong initiative.} 22. Bd4 {[%emt 0:03:27]} Bh6 {[%emt 0:02:00]} 23. Be3 $2 {[%emt 0:04:29][%mdl 8192]} (23. h4 $17) 23... f4 {[%emt 0:03:30]} 24. Bd2 {[%emt 0:00:23]} Qc5 {[%emt 0:08:00]} 25. g5 {[%emt 0:08:41]} (25. c4 $142 a3 26. b3) 25... Bxg5 {[%emt 0:01:26]} 26. Bg4 {[%emt 0:00:12]} Bxg4 {[%emt 0:03:02]} 27. Qxg4 {[%emt 0:00:13] [#]} Bf6 {[%emt 0:11:06]} (27... Qxf2 $2 28. Bxb4 Qd4 29. Qe6+ Kh8 30. c3 $17) (27... a3 $1 $19 {is more deadly.} 28. Bxf4 {[#]} Qd4 $1) 28. Qe6+ $17 {[%emt 0:11:41]} Kg7 {[%emt 0:00:05]} 29. Qxe4 {[%emt 0:00:27]} Rab8 {[%emt 0:05:51]} (29... Qb5 $5 {[%cal Rb4b3]} 30. Qxb4 (30. Qxf4 $2 b3 $19) 30... Qxd5 $15) 30. Bxf4 $2 {[%emt 0:03:24][%mdl 8192]} (30. h4 $15) 30... a3 $2 {[%emt 0:00:29]} ({Black should try} 30... b3 $19 {( -> ...bxa2+)} 31. a3 Qxf2) 31. Be3 $11 {[%emt 0:00:48]} Qc7 {[%emt 0:02:10]} 32. Bd4 {[%emt 0:00:38]} Qf7 {[%emt 0:01:02]} 33. Qf4 {[%emt 0:04:10]} Bxd4 {[%emt 0:02:34]} 34. Qxd4+ {[%emt 0:00:08]} Kg8 {[%emt 0:00:01]} 35. Rhe1 {[%emt 0:02:09]} axb2 {[%emt 0:00:13]} 36. Kxb2 {[%emt 0:03:00]} Rc5 {[%emt 0:02:12] The position is equal.} 37. Re6 {[%emt 0:00:16]} Qa7 {[%emt 0:00:32][%cal Oc5c2] Strongly threatening ...Rxc2+!} 38. Qe3 {[%emt 0:01:24] Active counter play!} Qa3+ $1 {[%emt 0:02:55]} ({Don't take} 38... Ra8 39. Re8+ Rxe8 40. Qxe8+ Kg7 41. Qe3 $14) 39. Kb1 {[%emt 0:01:18]} Qxe3 {[%emt 0:00:00]} 40. Rxe3 {[%emt 0:00:29]} Rxd5 {[%emt 0:00:00][%mdl 4096] Endgame KRR-KRR} 41. Kb2 {[%emt 0:08:28]} Rf5 {[%emt 0:09:29]} 42. Rce1 {[%emt 0:05:00]} Rxf2 {[%emt 0:01:14]} 43. Re8+ {[%emt 0:00:35]} Rf8 {[%emt 0:01:58]} 44. Rxb8 {[%emt 0:01:21]} Rxb8 {[%emt 0:00:02] KR-KR} 45. Re7 {[%emt 0:00:06]} Rb6 {[%emt 0:00:43]} 46. Kb3 {[%emt 0:00:48]} g5 {[%emt 0:01:34]} 47. Ra7 {[%emt 0:02:52]} h6 {[%emt 0:03:46][%cal Bh7h6,Bh6h5,Bh5g4][%mdl 32]} 48. c3 {[%emt 0:09:03]} bxc3+ {[%emt 0:00:09]} 49. Kxc3 {[%emt 0:00:03]} h5 {[%emt 0:06:26]} 50. Kd3 {[%emt 0:04:04]} Rb1 {[%emt 0:02:03]} 51. Ke4 {[%emt 0:01:23]} g4 {[%emt 0:05:15]} 52. hxg4 {[%emt 0:00:09]} hxg4 {[%emt 0:00:01]} 53. Kf4 {[%emt 0:00:44]} Rb4+ {[%emt 0:00:45]} 54. Kf5 {[%emt 0:01:23]} Kf8 {[%emt 0:01:26]} 55. Ra3 {[%emt 0:01:24]} Ke7 {[%emt 0:01:11]} 56. Rg3 {[%emt 0:00:28]} Ra4 {[%emt 0:00:12]} 57. Rxg4 {[%emt 0:00:31]} Rxa2 {[%emt 0:00:05] White must now prevent ...Ra5+.} 58. Rg7+ {[%emt 0:00:05]} Kd8 {[%emt 0:00:59]} 59. Ke6 {[%emt 0:00:06]} Rd2 {[%emt 0:00:06]} 60. Rd7+ {[%emt 0:00:06] Weighted Error Value: White=0.44/Black=0.29 (precise)} 1/2-1/2

[Event "Austrian Championship 2022"]
[Site "Vienna"]
[Date "2022.08.14"]
[Round "3.16"]
[White "Hechl, Gerald"]
[Black "Dotzer, Lukas"]
[Result "1/2-1/2"]
[ECO "B20"]
[WhiteElo "2222"]
[BlackElo "2269"]
[Annotator "TA"]
[PlyCount "36"]
[EventDate "2022.08.12"]
[EventType "swiss"]
[EventCountry "AUT"]
[SourceTitle "playchess.com"]
[Source "ChessBase"]
[SourceQuality "1"]
[TimeControl "40/5400+30:1800+30"]

{[%evp 9,36,32,31,0,4,-18,0,0,0,0,-6,-13,-1,-2,33,17,71,16,20,-43,69,82,72,82,71,0,0,5,4]} 1. e4 {[%emt 0:00:01]} c5 {[%emt 0:00:06]} 2. b4 {[%emt 0:00:04]} cxb4 {[%emt 0:00:39]} 3. a3 {[%emt 0:00:05]} bxa3 {[%emt 1:31:15]} 4. d4 {[%emt 0:00:08]} d5 {[%emt 0:00:00]} 5. exd5 {[%emt 0:00:35]} Nf6 {[%emt 0:00:00] [#]} 6. Bb5+ $146 {[%emt 0:29:18] B20: Sicilian: Unusual White 2nd moves.} ({Predecessor:} 6. c4 e6 7. dxe6 Bxe6 8. d5 Bg4 9. Be2 Bb4+ 10. Bd2 Qe7 11. Bxb4 Qxb4+ 12. Nd2 {0-1 (35) Grabinsky,V (2219)-Martin,L (2205) Chess.com INT 2021}) 6... Bd7 {[%emt 0:00:00]} 7. Bxd7+ {[%emt 0:00:09]} Qxd7 {[%emt 0:00:00]} 8. Nf3 {[%emt 0:00:10]} Qxd5 {[%emt 0:00:00]} 9. O-O {[%emt 0:04:47]} e6 {[%emt 0:00:00]} 10. Nxa3 {[%emt 0:00:17]} Be7 {[%emt 0:00:00]} 11. c4 {[%emt 0:00:07]} Qd8 {[%emt 0:00:00]} 12. Nb5 {[%emt 0:01:08] With the idea Bf4.} (12. Qb3 $5 {[%cal Rb3b7]}) 12... Na6 {[%emt 0:00:00]} (12... a6 $11) 13. Ne5 {[%emt 0:07:59]} (13. Qe2 $16) 13... O-O $11 {[%emt 0:00:00]} 14. Qf3 {[%emt 0:00:04]} (14. Bf4 $11) 14... Nc7 {[%emt 0:00:00]} (14... Nb4 $1 $15) 15. Qxb7 $14 {[%emt 0:04:40] White is much more active. The black rooks are badly placed.} Nxb5 {[%emt 0:00:00]} 16. Nc6 {[%emt 0:00:07] Against Rb8} Nd6 {[%emt 0:00:00]} 17. Nxd8 {[%emt 0:02:53]} ({Wrong is} 17. Nxe7+ $2 Kh8 18. Qc6 Qxe7 $19) (17. Qxe7 $16 Qxe7 18. Nxe7+ Kh8 19. c5) 17... Nxb7 $11 {[%emt 0:00:00]} 18. Nxb7 {[%emt 0:00:02]} Rfc8 {[%emt 0:00:00] Weighted Error Value: White=0.23 (precise) /Black=0.25 (precise)} 1/2-1/2

[Event "Austrian Championship 2022"]
[Site "Vienna"]
[Date "2022.08.14"]
[Round "3.17"]
[White "Lerch, Johannes"]
[Black "Wagner, Leopold Franziskus"]
[Result "1/2-1/2"]
[ECO "B10"]
[WhiteElo "2222"]
[BlackElo "2080"]
[Annotator "TA"]
[PlyCount "78"]
[EventDate "2022.08.12"]
[EventType "swiss"]
[EventCountry "AUT"]
[SourceTitle "playchess.com"]
[Source "ChessBase"]
[SourceQuality "1"]
[TimeControl "40/5400+30:1800+30"]

{[%evp 9,78,-10,20,14,14,21,30,17,43,17,47,16,32,25,32,0,31,16,16,18,33,41,34,36,36,36,35,38,30,19,19,19,20,16,46,49,53,44,46,30,43,26,33,33,41,0,0,0,9,0,0,0,0,0,0,0,0,0,0,0,17,18,16,0,0,0,0,0,0,-8,-8]} 1. e4 {[%emt 0:00:02]} c6 {[%emt 0:00:05]} 2. Nf3 {[%emt 0:00:05]} d5 {[%emt 0:00:05]} 3. d3 {[%emt 0:00:04]} dxe4 {[%emt 0:01:12]} 4. dxe4 {[%emt 0:00:28]} Qxd1+ {[%emt 0:00:02]} 5. Kxd1 {[%emt 0:00:07]} Bg4 {[%emt 0:00:31]} 6. Be2 {[%emt 0:00:06] B10: Caro-Kann: 2 d3 and 2 c4.} Nd7 {[%emt 0:01:11]} 7. Ne1 {[%emt 0:00:22]} Bxe2+ {[%emt 0:00:21]} 8. Kxe2 {[%emt 0:00:10] White has an edge.} e5 {[%emt 0:01:02]} 9. a4 {[%emt 0:01:04] [#]} g6 $146 {[%emt 0:06:31]} ({Predecessor:} 9... Bc5 10. Nd3 a5 11. Nd2 f6 12. Nc4 Be7 13. Bd2 b6 14. Be3 Bd8 15. c3 Bc7 {1-0 (24) Sadhwani,R (2545)-Kovalev,D (2487) Chess.com INT 2020}) 10. b3 {[%emt 0:14:34]} Nc5 {[%emt 0:02:33]} 11. f3 {[%emt 0:01:08]} Ne6 {[%emt 0:00:41]} 12. c3 {[%emt 0:07:38]} Bh6 {[%emt 0:01:48]} 13. Nd3 {[%emt 0:04:41]} (13. Nd2 {with more complications.} O-O-O 14. Nd3 f6 15. Rd1) 13... Bxc1 {[%emt 0:07:00]} 14. Rxc1 {[%emt 0:00:39]} Nf4+ {[%emt 0:04:47]} 15. Nxf4 {[%emt 0:00:28]} exf4 {[%emt 0:00:02]} 16. Rd1 {[%emt 0:05:53]} Nh6 {[%emt 0:05:52]} 17. Na3 {[%emt 0:08:51]} f6 {[%emt 0:02:10]} 18. Nc4 {[%emt 0:02:41]} Nf7 {[%emt 0:00:16]} 19. Rd4 {[%emt 0:04:37]} Ke7 $1 {[%emt 1:03:51]} 20. Rad1 {[%emt 0:01:49]} Rhd8 {[%emt 0:00:00] Prevents Rd7+.} 21. Na5 {[%emt 0:04:14]} Rxd4 {[%emt 0:00:00]} (21... Nd6 {seems wilder.} 22. b4 Rac8 23. Nb3 b6) 22. cxd4 $11 {[%emt 0:01:28][%mdl 4096] Endgame KRN-KRN} Nd8 {[%emt 0:00:00]} 23. b4 {[%emt 0:07:18]} b6 {[%emt 0:00:00]} 24. Nb3 {[%emt 0:00:21]} Nb7 {[%emt 0:00:00]} 25. Rc1 {[%emt 0:03:15]} Kd7 {[%emt 0:00:00]} 26. a5 {[%emt 0:02:47]} Rc8 {[%emt 0:00:00]} 27. axb6 {[%emt 0:02:17]} axb6 {[%emt 0:00:00] The position is equal.} 28. Ra1 {[%emt 0:01:52]} Nd6 {[%emt 0:00:00]} 29. Kd3 {[%emt 0:01:21]} Nb5 {[%emt 0:00:00]} 30. g3 {[%emt 0:04:24]} fxg3 {[%emt 0:00:00]} 31. hxg3 {[%emt 0:00:01]} h5 {[%emt 0:00:00][%cal Bh7h5,Bh5h4,Bh4g3][%mdl 32]} 32. Ke3 {[%emt 0:07:51]} Rh8 {[%emt 0:00:00]} 33. Nd2 {[%emt 0:04:10]} g5 {[%emt 0:00:00]} 34. f4 {[%emt 0:02:56]} h4 {[%emt 0:00:00]} 35. fxg5 {[%emt 0:01:46]} fxg5 {[%emt 0:00:00]} 36. Nf3 {[%emt 0:01:29]} hxg3 {[%emt 0:00:00]} 37. Rg1 {[%emt 0:00:14]} g4 {[%emt 0:00:00]} 38. Ne5+ {[%emt 0:00:03]} Kc7 {[%emt 0:00:00]} 39. Nxg4 {[%emt 0:01:58]} Rd8 {[%emt 0:00:00] Weighted Error Value: White=0.07 (flawless) /Black=0.06 (flawless)} 1/2-1/2

[Event "Austrian Championship 2022"]
[Site "Vienna"]
[Date "2022.08.14"]
[Round "3.18"]
[White "Belke, Frank"]
[Black "Fuchs, Patrick"]
[Result "1-0"]
[ECO "D20"]
[WhiteElo "2226"]
[BlackElo "1990"]
[Annotator "TA"]
[PlyCount "73"]
[EventDate "2022.08.12"]
[EventType "swiss"]
[EventCountry "AUT"]
[SourceTitle "playchess.com"]
[Source "ChessBase"]
[SourceQuality "1"]
[TimeControl "40/5400+30:1800+30"]

{[%evp 9,73,5,16,-3,-6,-11,-26,-2,-31,-16,-4,-35,-33,-61,-1,-8,0,0,-3,0,33,41,42,8,0,20,56,42,53,55,93,49,105,89,133,137,208,171,183,173,275,279,275,318,291,300,569,521,678,714,705,673,677,668,633,613,735,701,1068,820,791,707,29970,5605,29982,1084]} 1. d4 {[%emt 0:00:03]} d5 {[%emt 0:00:10]} 2. c4 {[%emt 0:00:06]} dxc4 {[%emt 0:00:15]} 3. e4 {[%emt 0:00:05]} b5 {[%emt 0:00:08]} 4. a4 {[%emt 0:00:11]} c6 {[%emt 0:00:08]} 5. b3 {[%emt 0:01:34]} e5 {[%emt 0:00:20] And now ...Bb4+ would win.} 6. Nf3 {[%emt 0:10:29] D20: Queen's Gambit Accepted: 3 e3 and 3 e4.} exd4 {[%emt 0:06:41]} 7. Qxd4 {[%emt 0:00:05]} Bb4+ {[%emt 0:02:48]} 8. Bd2 {[%emt 0:00:53] [#] Black has an edge.} Bxd2+ $146 {[%emt 0:08:07]} ({Predecessor:} 8... Qxd4 9. Nxd4 Bxd2+ 10. Kxd2 Nf6 11. f3 O-O 12. Be2 c5 13. Nxb5 a6 14. N5a3 cxb3 {½-½ (28) Rodriguez,A (2269)-Sochacki,W (2333) Paris 2022}) 9. Qxd2 {[%emt 0:00:09]} Qe7 {[%emt 0:05:23] next ...Nf6 is good for Black.} 10. bxc4 {[%emt 0:03:09]} b4 {[%emt 0:01:22]} (10... Qxe4+ 11. Be2 $11) 11. Bd3 {[%emt 0:07:19]} Bg4 {[%emt 0:10:45]} ({Black should try} 11... Na6 $15) 12. Nd4 $1 $11 {[%emt 0:09:20]} c5 {[%emt 0:09:39]} 13. Nb3 {[%emt 0:00:05]} Nf6 {[%emt 0:02:10]} 14. f3 {[%emt 0:00:52]} Bc8 {[%emt 0:01:14]} 15. O-O {[%emt 0:05:08][%cal Oe4e5]} O-O {[%emt 0:01:14]} 16. Re1 {[%emt 0:02:15]} Nc6 {[%emt 0:08:32]} 17. e5 {[%emt 0:03:29]} Re8 {[%emt 0:06:18]} (17... Nxe5 $2 18. f4 $18) (17... Nd7 {seems wilder.} 18. Be4 Bb7 19. Qd6 Rae8) 18. f4 {[%emt 0:06:23][%cal Ob1a3]} Bb7 {[%emt 0:04:23]} 19. Qf2 {[%emt 0:01:24]} Nd7 {[%emt 0:00:42][%cal Oc6d4] Black is now going downhill.} 20. N1d2 {[%emt 0:00:20]} Rad8 {[%emt 0:06:28]} (20... Nd4 $14) 21. Be4 $16 {[%emt 0:02:31] White is much more active.} Kh8 {[%emt 0:02:59]} 22. Rad1 {[%emt 0:09:05] Threatens to win with Bd5.} f6 {[%emt 0:06:47]} (22... Nb6 $16) 23. e6 {[%emt 0:04:27]} ({But not} 23. Qh4 $6 g6 $14) 23... Qxe6 {[%emt 0:05:18]} 24. Bg6 {[%emt 0:00:26]} Qxe1+ {[%emt 0:00:23]} (24... hxg6 $142 25. Rxe6 Rxe6) 25. Rxe1 $18 {[%emt 0:00:04]} Rxe1+ {[%emt 0:00:19]} 26. Qxe1 {[%emt 0:00:01]} hxg6 {[%emt 0:00:08]} 27. Ne4 {[%emt 0:05:04] [#] Hoping for Nd6.} Nb6 $2 {[%emt 0:01:40]} (27... Ndb8 28. Nbxc5 Bc8) 28. Nexc5 {[%emt 0:01:32]} Bc8 {[%emt 0:00:17]} 29. Qe4 {[%emt 0:00:31][%csl LRc6,LRg6]} Nb8 {[%emt 0:03:43]} 30. a5 {[%emt 0:02:23]} Bf5 {[%emt 0:01:04]} 31. Qe7 {[%emt 0:01:19]} Nc6 {[%emt 0:00:09]} 32. Qc7 {[%emt 0:02:17]} Rc8 {[%emt 0:00:13]} 33. Qf7 {[%emt 0:00:08]} ({Stronger than} 33. axb6 Rxc7 34. bxc7 Kg8 $11) 33... Na8 {[%emt 0:01:48]} 34. Ne6 {[%emt 0:03:43][%csl Ge6][%cal Rf7g7] [#]} Rg8 {[%emt 0:00:34]} 35. Nbd4 {[%emt 0:01:10]} Bxe6 {[%emt 0:00:32]} 36. Nxe6 {[%emt 0:00:16]} (36. Qxe6 $142 Rf8 37. Nxc6 Nc7 38. Qe7 Re8 39. Qxc7 a6 40. Qd7 Re3 41. Kf2) 36... Kh7 {[%emt 0:01:21]} 37. Nf8+ {[%emt 0:01:04] Weighted Error Value: White=0.14 (very precise) /Black=0.74} (37. Qd7 $142 Kh8 38. Qxc6 b3 39. Qb5 b2 40. Qxb2 Kh7 41. Qb3 Re8 42. c5) 1-0

[Event "Austrian Championship 2022"]
[Site "Vienna"]
[Date "2022.08.14"]
[Round "3.19"]
[White "Gschiel, Alexander"]
[Black "Stadlinger, Lea"]
[Result "1-0"]
[ECO "D30"]
[WhiteElo "2215"]
[BlackElo "1723"]
[Annotator "TA"]
[PlyCount "45"]
[EventDate "2022.08.12"]
[EventType "swiss"]
[EventCountry "AUT"]
[SourceTitle "playchess.com"]
[Source "ChessBase"]
[SourceQuality "1"]
[TimeControl "40/5400+30:1800+30"]

{[%evp 20,45,41,21,73,50,66,43,93,75,84,87,102,105,206,212,543,538,515,529,528,535,527,499,509,508,487,432]} 1. Nf3 {[%emt 0:00:06]} Nf6 {[%emt 0:01:01]} 2. g3 {[%emt 0:00:10]} d5 {[%emt 0:02:31]} 3. Bg2 {[%emt 0:00:20]} e6 {[%emt 0:00:31]} 4. O-O {[%emt 0:00:23]} Be7 {[%emt 0:03:15]} 5. c4 {[%emt 0:00:37]} O-O {[%emt 0:00:56]} 6. b3 {[%emt 0:01:25]} c5 {[%emt 0:03:52]} 7. cxd5 {[%emt 0:03:00]} exd5 {[%emt 0:05:37]} 8. d4 {[%emt 0:01:29]} b6 {[%emt 0:08:00]} 9. Bb2 {[%emt 0:05:58]} Nc6 {[%emt 0:03:19]} 10. Nc3 {[%emt 0:04:47]} Bb7 {[%emt 0:04:43]} 11. Rc1 {[%emt 0:01:28]} Qd7 {[%emt 0:06:21] D30: Queen's Gambit Declined: Systems without Nc3.} (11... Rb8 $11) 12. dxc5 {[%emt 0:06:49]} Bxc5 {[%emt 0:04:51] [#]} 13. a3 $146 {[%emt 0:03:05]} ({Predecessor:} 13. Na4 Be7 14. Ne5 Nxe5 15. Bxe5 Rac8 16. Qd3 Qe6 {½-½ (16) Krnic,Z (2380)-Cvetkovic,S (2382) Belgrade 2009}) 13... Rad8 {[%emt 0:03:26]} (13... Rfd8 $14) 14. b4 $16 {[%emt 0:01:46]} Be7 {[%emt 0:01:35]} 15. e3 {[%emt 0:10:56]} Ne4 {[%emt 0:07:54]} 16. Qc2 {[%emt 0:04:55]} Bf6 {[%emt 0:07:22]} (16... Rc8 $16 {might work better.}) 17. Nxe4 $18 {[%emt 0:06:38]} Bxb2 {[%emt 0:02:52]} (17... dxe4 {is more resistant.} 18. Bxf6 gxf6) 18. Neg5 {[%emt 0:00:42][%csl Gg5][%cal Rc2h7] [#] White is clearly winning.} g6 {[%emt 0:04:14]} 19. Qxb2 {[%emt 0:00:10]} h6 {[%emt 0:02:04]} 20. Nh3 {[%emt 0:02:02]} g5 {[%emt 0:01:53]} 21. Ne5 {[%emt 0:00:49]} Nxe5 {[%emt 0:00:08]} 22. Qxe5 {[%emt 0:00:09] [#] Rc7 is the strong threat.} Rfe8 {[%emt 0:00:17]} 23. Qc7 {[%emt 0:00:24] White took control after the opening.  Weighted Error Value: White=0.05 (flawless) /Black=0.59} 1-0

[Event "Austrian Championship 2022"]
[Site "Vienna"]
[Date "2022.08.14"]
[Round "3.20"]
[White "Froewis, Annika"]
[Black "Bauer, Thomas"]
[Result "1-0"]
[ECO "A43"]
[WhiteElo "2044"]
[BlackElo "2228"]
[Annotator "TA"]
[PlyCount "79"]
[EventDate "2022.08.12"]
[EventType "swiss"]
[EventCountry "AUT"]
[SourceTitle "playchess.com"]
[Source "ChessBase"]
[SourceQuality "1"]
[TimeControl "40/5400+30:1800+30"]

{[%evp 10,79,29,29,29,23,75,66,79,81,88,80,93,78,117,97,147,142,152,129,288,291,302,297,340,300,372,293,345,299,300,265,276,233,263,254,264,215,268,279,356,340,450,292,368,311,493,505,605,606,700,670,795,793,790,789,727,732,1016,772,939,898,1069,881,1600,1456,29987,29988,29987,29985,29997,29998]} 1. d4 {[%emt 0:00:02][%cal Bd2d4,Bd4d5][%mdl 32]} Nf6 {[%emt 0:00:37]} 2. Bf4 {[%emt 0:00:14]} c5 {[%emt 0:01:29]} 3. d5 {[%emt 0:00:31]} d6 {[%emt 0:01:49]} 4. Nc3 {[%emt 0:01:55]} g6 {[%emt 0:01:30]} 5. e4 {[%emt 0:01:01]} Bg7 {[%emt 0:00:01]} 6. Nf3 {[%emt 0:03:45]} O-O {[%emt 0:00:56][%cal Ob7b5] A43: Schmid Benoni.} 7. a4 {[%emt 0:04:50]} b6 {[%emt 0:05:10] [#]} (7... Nh5 $11 {keeps the balance.} 8. Bd2 f5) 8. Qd2 $146 {[%emt 0:16:55]} ({Predecessor:} 8. h3 Na6 9. Bc4 Nc7 10. O-O a6 11. Re1 Bb7 12. Qd3 Qd7 13. e5 Nfe8 14. Rad1 {½-½ (64) Arnold,E (2096)-Burnham,J (2151) ICCF email 2020}) 8... Qe8 {[%emt 0:11:23] White is slightly better.} 9. Bb5 {[%emt 0:05:55]} Bd7 {[%emt 0:01:54]} 10. Be2 {[%emt 0:01:56]} Bg4 {[%emt 0:08:48]} 11. O-O {[%emt 0:08:50]} Nfd7 {[%emt 0:07:29]} 12. Bh6 {[%emt 0:02:43]} f6 {[%emt 0:12:21]} ({Better is} 12... Qc8) 13. Bxg7 {[%emt 0:01:58] White is much more active.} Kxg7 {[%emt 0:00:09]} 14. Nb5 {[%emt 0:06:04] Hoping for Nc7.} Qc8 {[%emt 0:09:01] [#] Against Nc7} (14... Bxf3 $16 15. Nc7 (15. gxf3 Qc8 $16) (15. Bxf3 Na6 $16) 15... Qc8) 15. Nfd4 $1 $18 {[%emt 0:05:08][%mdl 512]} cxd4 {[%emt 0:13:21]} (15... Bxe2 16. Ne6+) 16. Bxg4 {[%emt 0:00:10]} Kh8 {[%emt 0:04:16]} 17. Nxd4 {[%emt 0:02:52]} Rg8 {[%emt 0:00:02]} 18. Ra3 {[%emt 0:02:37]} Qe8 {[%emt 0:01:24]} 19. Qh6 {[%emt 0:12:57][%cal Oh6h7] Intending Qxh7+! and mate.} Nf8 {[%emt 0:01:26]} 20. f4 {[%emt 0:03:25]} Na6 {[%emt 0:02:11]} 21. Rh3 {[%emt 0:02:18]} Rg7 {[%emt 0:01:07]} 22. b3 {[%emt 0:01:27]} Nc5 {[%emt 0:01:07]} 23. Re1 $40 {[%emt 0:01:54][%cal Bf1e1,Be1e3,Be3c3,Bc3c4][%mdl 160] White goes for the king.} Nb7 {[%emt 0:04:35]} 24. Qh4 {[%emt 0:01:20]} Nd8 {[%emt 0:01:52]} 25. Rc3 {[%emt 0:01:52][%cal Bh3c3,Bc3c6,Bc6c7,Bc7e7][%mdl 32]} Nf7 {[%emt 0:02:49]} 26. Ree3 {[%emt 0:01:03]} a6 {[%emt 0:01:09]} 27. Rc6 {[%emt 0:01:12] Threatens to win with Rec3.} b5 {[%emt 0:01:17]} (27... g5 {is a better defense.} 28. fxg5 fxg5) 28. Rec3 {[%emt 0:02:57]} g5 {[%emt 0:03:47]} 29. Qh5 {[%emt 0:02:40]} b4 {[%emt 0:00:55]} 30. R3c4 {[%emt 0:00:50]} Nd7 {[%emt 0:00:54]} 31. Rc7 {[%emt 0:01:35]} Nc5 {[%emt 0:00:31]} 32. Nf5 {[%emt 0:01:36]} Rg6 {[%emt 0:00:37]} 33. Rxe7 {[%emt 0:00:18]} Qf8 {[%emt 0:00:20]} 34. Rc7 {[%emt 0:01:41][%cal Of5d6] Nxd6! is the strong threat.} Rd8 {[%emt 0:00:39]} 35. Nd4 {[%emt 0:00:34]} Re8 {[%emt 0:00:33]} 36. Bf5 {[%emt 0:00:30]} Kg7 {[%emt 0:00:27]} 37. R4xc5 {[%emt 0:00:37] Ne6+ would kill now.} dxc5 {[%emt 0:00:33]} 38. Ne6+ {[%emt 0:00:12] White mates.} Rxe6 {[%emt 0:00:11]} 39. Bxe6 {[%emt 0:00:39]} Rh6 {[%emt 0:00:48]} 40. Rxf7+ {[%emt 0:00:12] Black got outplayed after the opening.  Weighted Error Value: White=0.18 (very precise) /Black=0.76} 1-0